[Event "Titled Tuesday Blitz July 27 2021"]
[White "Arakhamia-Grant, Ketevan"]
[Black "Pinheiro, Iung Alicio de O."]
[WhiteFideId "13600168"]
[BlackFideId "2104350"]
[WhiteElo "2177"]
[BlackElo "2472"]
[Result "0-1"]
[Round "10"]
[TimeControl "180+1"]
[Date "2021.07.27"]
[WhiteClock "0:00:03"]
[BlackClock "0:00:19"]

1. e4 {[%clk 0:03:00]}  c6 {[%clk 0:02:59]} 2. d4 {[%clk 0:02:58]}  d5 {[%clk 0:03:00]} 3. e5 {[%clk 0:02:58]}  Bf5 {[%clk 0:03:00]} 4. Nd2 {[%clk 0:02:57]}  e6 {[%clk 0:02:59]} 5. Nb3 {[%clk 0:02:57]}  Nd7 {[%clk 0:02:58]} 6. Nf3 {[%clk 0:02:57]}  h6 {[%clk 0:02:59]} 7. Be2 {[%clk 0:02:56]}  Ne7 {[%clk 0:02:59]} 8. O-O {[%clk 0:02:55]}  Bh7 {[%clk 0:02:59]} 9. a4 {[%clk 0:02:52]}  Ng6 {[%clk 0:02:59]} 10. a5 {[%clk 0:02:49]}  Be7 {[%clk 0:02:59]} 11. g3 {[%clk 0:02:44]}  O-O {[%clk 0:02:58]} 12. h4 {[%clk 0:02:44]}  f6 {[%clk 0:02:54]} 13. h5 {[%clk 0:02:39]}  Nh8 {[%clk 0:02:53]} 14. Bd3 {[%clk 0:02:33]}  Bxd3 {[%clk 0:02:47]} 15. Qxd3 {[%clk 0:02:34]}  fxe5 {[%clk 0:02:47]} 16. Nxe5 {[%clk 0:02:31]}  Nxe5 {[%clk 0:02:21]} 17. dxe5 {[%clk 0:02:32]}  c5 {[%clk 0:02:19]} 18. c4 {[%clk 0:02:26]}  Nf7 {[%clk 0:02:06]} 19. f4 {[%clk 0:02:18]}  Qd7 {[%clk 0:01:55]} 20. Nd2 {[%clk 0:02:13]}  Rad8 {[%clk 0:01:53]} 21. Nf3 {[%clk 0:02:08]}  Qc6 {[%clk 0:01:49]} 22. b3 {[%clk 0:01:59]}  Rd7 {[%clk 0:01:37]} 23. Bb2 {[%clk 0:01:43]}  Rfd8 {[%clk 0:01:37]} 24. Qg6 {[%clk 0:01:36]}  dxc4 {[%clk 0:01:28]} 25. f5 {[%clk 0:01:29]}  Nh8 {[%clk 0:01:08]} 26. Qxe6+ {[%clk 0:01:22]}  Qxe6 {[%clk 0:01:08]} 27. fxe6 {[%clk 0:01:23]}  Rc7 {[%clk 0:00:54]} 28. Rad1 {[%clk 0:01:11]}  Rxd1 {[%clk 0:00:46]} 29. Rxd1 {[%clk 0:01:12]}  Rc6 {[%clk 0:00:46]} 30. Rd7 {[%clk 0:01:06]}  Rxe6 {[%clk 0:00:46]} 31. bxc4 {[%clk 0:01:04]}  Kf8 {[%clk 0:00:22]} 32. Rxb7 {[%clk 0:01:04]}  Ra6 {[%clk 0:00:23]} 33. Bc3 {[%clk 0:01:00]}  Nf7 {[%clk 0:00:23]} 34. e6 {[%clk 0:00:51]}  Nd8 {[%clk 0:00:22]} 35. Bxg7+ {[%clk 0:00:44]}  Ke8 {[%clk 0:00:20]} 36. Rb8 {[%clk 0:00:41]}  Rxe6 {[%clk 0:00:20]} 37. Ne5 {[%clk 0:00:32]}  Bd6 {[%clk 0:00:18]} 38. Rxd8+ {[%clk 0:00:19]}  Kxd8 {[%clk 0:00:19]} 39. Nf7+ {[%clk 0:00:16]}  Ke7 {[%clk 0:00:19]} 40. Nxd6 {[%clk 0:00:14]}  Kxd6 {[%clk 0:00:19]} 41. Kf2 {[%clk 0:00:11]}  Ke7 {[%clk 0:00:20]} 42. Kf3 {[%clk 0:00:10]}  Kf7 {[%clk 0:00:20]} 43. Bc3 {[%clk 0:00:08]}  Re7 {[%clk 0:00:19]} 44. Bd2 {[%clk 0:00:07]}  Kg7 {[%clk 0:00:18]} 45. Bc3+ {[%clk 0:00:05]}  Kh7 {[%clk 0:00:19]} 46. Kf4 {[%clk 0:00:05]}  Re2 {[%clk 0:00:18]} 47. g4 {[%clk 0:00:04]}  Rc2 {[%clk 0:00:18]} 48. Be5 {[%clk 0:00:04]}  Rxc4+ {[%clk 0:00:18]} 49. Kf5 {[%clk 0:00:03]}  Ra4 {[%clk 0:00:19]} 50. Bc7 {[%clk 0:00:03]}  c4 {[%clk 0:00:19]} 0-1


[Site "https://www.chess.com"]

[Event "Titled Tuesday Blitz July 27 2021"]
[White "Babiy, Olga"]
[Black "Manukian, Artak"]
[WhiteFideId "14117258"]
[BlackFideId "13301373"]
[WhiteElo "2230"]
[BlackElo "2362"]
[Result "1-0"]
[Round "10"]
[TimeControl "180+1"]
[Date "2021.07.27"]
[WhiteClock "0:00:12"]
[BlackClock "0:00:48"]

1. Nf3 {[%clk 0:03:00]}  g6 {[%clk 0:02:53]} 2. g3 {[%clk 0:03:01]}  Bg7 {[%clk 0:02:53]} 3. Bg2 {[%clk 0:03:01]}  c5 {[%clk 0:02:53]} 4. O-O {[%clk 0:03:01]}  Nc6 {[%clk 0:02:53]} 5. d3 {[%clk 0:02:56]}  d5 {[%clk 0:02:50]} 6. Nbd2 {[%clk 0:02:49]}  Nf6 {[%clk 0:02:49]} 7. e4 {[%clk 0:02:43]}  O-O {[%clk 0:02:49]} 8. c3 {[%clk 0:02:38]}  dxe4 {[%clk 0:02:47]} 9. dxe4 {[%clk 0:02:27]}  b6 {[%clk 0:02:45]} 10. Qe2 {[%clk 0:02:21]}  a5 {[%clk 0:02:44]} 11. Rd1 {[%clk 0:02:16]}  Ba6 {[%clk 0:02:44]} 12. Qe1 {[%clk 0:02:07]}  Qc7 {[%clk 0:02:38]} 13. e5 {[%clk 0:01:49]}  Ng4 {[%clk 0:02:29]} 14. e6 {[%clk 0:01:45]}  f5 {[%clk 0:02:27]} 15. Nf1 {[%clk 0:01:21]}  Rad8 {[%clk 0:02:22]} 16. Bf4 {[%clk 0:01:21]}  Qc8 {[%clk 0:02:18]} 17. Ng5 {[%clk 0:01:15]}  Nh6 {[%clk 0:02:02]} 18. Bd5 {[%clk 0:00:53]}  Kh8 {[%clk 0:01:47]} 19. h3 {[%clk 0:00:32]}  Bb7 {[%clk 0:01:47]} 20. Qe3 {[%clk 0:00:28]}  Na7 {[%clk 0:01:13]} 21. Bxb7 {[%clk 0:00:21]}  Qxb7 {[%clk 0:01:14]} 22. Nf3 {[%clk 0:00:17]}  Ng8 {[%clk 0:01:12]} 23. Ne5 {[%clk 0:00:18]}  Bxe5 {[%clk 0:01:09]} 24. Bxe5+ {[%clk 0:00:16]}  Nf6 {[%clk 0:01:10]} 25. Qh6 {[%clk 0:00:16]}  Qe4 {[%clk 0:00:59]} 26. Bxf6+ {[%clk 0:00:14]}  exf6 {[%clk 0:00:58]} 27. Re1 {[%clk 0:00:12]}  Qf3 {[%clk 0:00:48]} 28. e7 {[%clk 0:00:12]}  Rfe8 {[%clk 0:00:47]} 29. exd8=Q {[%clk 0:00:12]}  Rxd8 {[%clk 0:00:48]} 30. Re7 {[%clk 0:00:12]} 1-0


[Site "https://www.chess.com"]

[Event "Titled Tuesday Blitz July 27 2021"]
[White "Begmuratov, Khumoyun"]
[Black "Grinblat, Dmitry"]
[WhiteFideId "14210207"]
[BlackFideId "4163257"]
[WhiteElo "1932"]
[BlackElo "2460"]
[Result "1/2-1/2"]
[Round "10"]
[TimeControl "180+1"]
[Date "2021.07.27"]
[WhiteClock "0:00:04"]
[BlackClock "0:00:15"]

1. e4 {[%clk 0:03:00]}  c5 {[%clk 0:02:59]} 2. Nf3 {[%clk 0:02:55]}  d6 {[%clk 0:02:59]} 3. d4 {[%clk 0:02:55]}  cxd4 {[%clk 0:03:00]} 4. Nxd4 {[%clk 0:02:54]}  Nf6 {[%clk 0:03:00]} 5. Nc3 {[%clk 0:02:54]}  a6 {[%clk 0:03:00]} 6. Be2 {[%clk 0:02:53]}  e6 {[%clk 0:02:59]} 7. O-O {[%clk 0:02:52]}  Nbd7 {[%clk 0:02:58]} 8. Be3 {[%clk 0:02:50]}  b5 {[%clk 0:02:58]} 9. a3 {[%clk 0:02:49]}  Bb7 {[%clk 0:02:58]} 10. f3 {[%clk 0:02:46]}  Qc7 {[%clk 0:02:56]} 11. Qd2 {[%clk 0:02:39]}  Be7 {[%clk 0:02:53]} 12. Rad1 {[%clk 0:02:38]}  O-O {[%clk 0:02:53]} 13. Nb3 {[%clk 0:02:34]}  Ne5 {[%clk 0:02:49]} 14. Bd4 {[%clk 0:02:29]}  Rac8 {[%clk 0:02:39]} 15. Qc1 {[%clk 0:02:24]}  Nc4 {[%clk 0:02:28]} 16. Bxc4 {[%clk 0:02:04]}  bxc4 {[%clk 0:02:27]} 17. Nd2 {[%clk 0:02:04]}  e5 {[%clk 0:02:15]} 18. Bf2 {[%clk 0:02:03]}  d5 {[%clk 0:02:11]} 19. exd5 {[%clk 0:02:02]}  Nxd5 {[%clk 0:02:10]} 20. Nde4 {[%clk 0:02:01]}  Nf4 {[%clk 0:02:05]} 21. Qe3 {[%clk 0:01:46]}  Ne6 {[%clk 0:01:59]} 22. Qb6 {[%clk 0:01:43]}  Qxb6 {[%clk 0:01:48]} 23. Bxb6 {[%clk 0:01:44]}  Bxe4 {[%clk 0:01:48]} 24. fxe4 {[%clk 0:01:39]}  Rb8 {[%clk 0:01:46]} 25. Nd5 {[%clk 0:01:30]}  Bc5+ {[%clk 0:01:39]} 26. Bxc5 {[%clk 0:01:28]}  Nxc5 {[%clk 0:01:39]} 27. Ne7+ {[%clk 0:01:23]}  Kh8 {[%clk 0:01:38]} 28. Nc6 {[%clk 0:01:21]}  Rbe8 {[%clk 0:01:16]} 29. Rd5 {[%clk 0:01:00]}  Nxe4 {[%clk 0:01:07]} 30. Nxe5 {[%clk 0:01:00]}  c3 {[%clk 0:01:01]} 31. bxc3 {[%clk 0:00:55]}  Nxc3 {[%clk 0:01:00]} 32. Ra5 {[%clk 0:00:44]}  f6 {[%clk 0:00:51]} 33. Nd3 {[%clk 0:00:35]}  Re2 {[%clk 0:00:48]} 34. Rxa6 {[%clk 0:00:34]}  Rxc2 {[%clk 0:00:47]} 35. Nb4 {[%clk 0:00:27]}  Rb2 {[%clk 0:00:43]} 36. Rc6 {[%clk 0:00:21]}  Nb5 {[%clk 0:00:41]} 37. Nd5 {[%clk 0:00:16]}  Nxa3 {[%clk 0:00:39]} 38. Nf4 {[%clk 0:00:16]}  Re8 {[%clk 0:00:29]} 39. Rc7 {[%clk 0:00:14]}  Nc2 {[%clk 0:00:21]} 40. Nd3 {[%clk 0:00:06]}  Ra2 {[%clk 0:00:19]} 41. Rf2 {[%clk 0:00:05]}  Ra1+ {[%clk 0:00:19]} 42. Rf1 {[%clk 0:00:06]}  Rxf1+ {[%clk 0:00:19]} 43. Kxf1 {[%clk 0:00:07]}  Ne3+ {[%clk 0:00:20]} 44. Kf2 {[%clk 0:00:07]}  Nf5 {[%clk 0:00:20]} 45. Nf4 {[%clk 0:00:06]}  h6 {[%clk 0:00:18]} 46. g4 {[%clk 0:00:06]}  Nd4 {[%clk 0:00:17]} 47. h4 {[%clk 0:00:06]}  Ne6 {[%clk 0:00:16]} 48. Nxe6 {[%clk 0:00:03]}  Rxe6 {[%clk 0:00:16]} 49. Kf3 {[%clk 0:00:04]}  Kh7 {[%clk 0:00:15]} 50. Kf4 {[%clk 0:00:05]}  Re5 {[%clk 0:00:16]} 51. h5 {[%clk 0:00:05]}  Rg5 {[%clk 0:00:16]} 52. Rd7 {[%clk 0:00:04]}  f5 {[%clk 0:00:16]} 53. gxf5 {[%clk 0:00:04]}  Kg8 {[%clk 0:00:16]} 54. Rd8+ {[%clk 0:00:02]}  Kf7 {[%clk 0:00:17]} 55. Rd7+ {[%clk 0:00:02]}  Kf6 {[%clk 0:00:16]} 56. Rd6+ {[%clk 0:00:03]}  Kf7 {[%clk 0:00:15]} 57. Rd7+ {[%clk 0:00:03]}  Ke8 {[%clk 0:00:15]} 58. Ra7 {[%clk 0:00:04]}  Kf8 {[%clk 0:00:15]} 59. Ra8+ {[%clk 0:00:04]}  Kf7 {[%clk 0:00:15]} 60. Ra7+ {[%clk 0:00:05]}  Kf6 {[%clk 0:00:14]} 61. Ra6+ {[%clk 0:00:04]}  Kf7 {[%clk 0:00:14]} 62. Ra7+ {[%clk 0:00:03]}  Kf6 {[%clk 0:00:15]} 63. Ra6+ {[%clk 0:00:04]}  Kf7 {[%clk 0:00:15]} 64. Ra7+ {[%clk 0:00:04]} 1/2-1/2


[Site "https://www.chess.com"]

[Event "Titled Tuesday Blitz July 27 2021"]
[White "Calderon, Zachary"]
[Black "Kim, Sergey"]
[WhiteFideId "2076969"]
[BlackFideId "13700570"]
[WhiteElo "2253"]
[BlackElo "2548"]
[Result "1-0"]
[Round "10"]
[TimeControl "180+1"]
[Date "2021.07.27"]
[WhiteClock "0:00:07"]
[BlackClock "0:00:07"]

1. d4 {[%clk 0:03:00]}  Nf6 {[%clk 0:02:59]} 2. Bf4 {[%clk 0:03:01]}  g6 {[%clk 0:02:59]} 3. Nc3 {[%clk 0:03:01]}  d6 {[%clk 0:02:56]} 4. e4 {[%clk 0:03:01]}  c6 {[%clk 0:02:56]} 5. Qd2 {[%clk 0:03:01]}  b5 {[%clk 0:02:55]} 6. O-O-O {[%clk 0:02:58]}  b4 {[%clk 0:02:54]} 7. Nb1 {[%clk 0:02:46]}  Nxe4 {[%clk 0:02:43]} 8. Qe1 {[%clk 0:02:47]}  d5 {[%clk 0:02:30]} 9. f3 {[%clk 0:02:37]}  Nf6 {[%clk 0:02:28]} 10. Bg5 {[%clk 0:02:29]}  Bg7 {[%clk 0:02:24]} 11. Qxb4 {[%clk 0:02:29]}  O-O {[%clk 0:02:23]} 12. Qd2 {[%clk 0:02:28]}  Nbd7 {[%clk 0:02:03]} 13. h4 {[%clk 0:02:24]}  Rb8 {[%clk 0:01:52]} 14. h5 {[%clk 0:02:20]}  Qb6 {[%clk 0:01:48]} 15. c3 {[%clk 0:02:20]}  e5 {[%clk 0:01:43]} 16. Ne2 {[%clk 0:01:58]}  Re8 {[%clk 0:01:36]} 17. hxg6 {[%clk 0:01:56]}  fxg6 {[%clk 0:01:30]} 18. dxe5 {[%clk 0:01:50]}  Nxe5 {[%clk 0:01:28]} 19. Nd4 {[%clk 0:01:43]}  c5 {[%clk 0:01:15]} 20. Nb3 {[%clk 0:01:41]}  Be6 {[%clk 0:01:11]} 21. Be3 {[%clk 0:01:29]}  Rec8 {[%clk 0:01:05]} 22. Na3 {[%clk 0:01:28]}  Qc7 {[%clk 0:00:53]} 23. Ba6 {[%clk 0:01:24]}  Nc4 {[%clk 0:00:48]} 24. Bxc4 {[%clk 0:01:12]}  dxc4 {[%clk 0:00:47]} 25. Nxc5 {[%clk 0:01:12]}  Bf7 {[%clk 0:00:44]} 26. Na6 {[%clk 0:01:06]}  Qe7 {[%clk 0:00:34]} 27. Nxb8 {[%clk 0:01:05]}  Rxb8 {[%clk 0:00:34]} 28. Rhe1 {[%clk 0:00:55]}  Nd5 {[%clk 0:00:32]} 29. Bd4 {[%clk 0:00:48]}  Qb7 {[%clk 0:00:27]} 30. Bxg7 {[%clk 0:00:46]}  Kxg7 {[%clk 0:00:28]} 31. Nxc4 {[%clk 0:00:39]}  Nf6 {[%clk 0:00:26]} 32. Nd6 {[%clk 0:00:34]}  Qc7 {[%clk 0:00:24]} 33. Nxf7 {[%clk 0:00:33]}  Qxf7 {[%clk 0:00:23]} 34. Qd4 {[%clk 0:00:30]}  Rb6 {[%clk 0:00:18]} 35. g4 {[%clk 0:00:24]}  h6 {[%clk 0:00:14]} 36. Kb1 {[%clk 0:00:21]}  g5 {[%clk 0:00:13]} 37. Re5 {[%clk 0:00:16]}  Qb7 {[%clk 0:00:12]} 38. b3 {[%clk 0:00:13]}  Qxf3 {[%clk 0:00:12]} 39. Rf5 {[%clk 0:00:10]}  Qe4+ {[%clk 0:00:09]} 40. Qxe4 {[%clk 0:00:10]}  Nxe4 {[%clk 0:00:10]} 41. Rd7+ {[%clk 0:00:09]}  Kg6 {[%clk 0:00:10]} 42. Rxa7 {[%clk 0:00:08]}  Nxc3+ {[%clk 0:00:10]} 43. Kc2 {[%clk 0:00:09]}  Ne4 {[%clk 0:00:10]} 44. Rfa5 {[%clk 0:00:08]}  Nf6 {[%clk 0:00:08]} 45. R5a6 {[%clk 0:00:08]}  Rb5 {[%clk 0:00:07]} 46. Rc7 {[%clk 0:00:07]} 1-0


[Site "https://www.chess.com"]

[Event "Titled Tuesday Blitz July 27 2021"]
[White "Carroll, Thomas"]
[Black "Obolentseva, Alexandra"]
[WhiteFideId "450111"]
[BlackFideId "24153648"]
[WhiteElo "1950"]
[BlackElo "2113"]
[Result "1-0"]
[Round "10"]
[TimeControl "180+1"]
[Date "2021.07.27"]
[WhiteClock "0:01:54"]
[BlackClock "0:01:22"]

1. d4 {[%clk 0:03:00]}  Nf6 {[%clk 0:02:59]} 2. Bg5 {[%clk 0:03:00]}  Ne4 {[%clk 0:02:58]} 3. Bf4 {[%clk 0:03:01]}  c5 {[%clk 0:02:57]} 4. f3 {[%clk 0:03:02]}  Nd6 {[%clk 0:02:55]} 5. dxc5 {[%clk 0:03:01]}  Qa5+ {[%clk 0:02:55]} 6. Nc3 {[%clk 0:03:00]}  Qxc5 {[%clk 0:02:55]} 7. e4 {[%clk 0:03:00]}  e6 {[%clk 0:02:53]} 8. Qd2 {[%clk 0:02:56]}  Nc4 {[%clk 0:02:52]} 9. Bxc4 {[%clk 0:02:56]}  Qxc4 {[%clk 0:02:52]} 10. O-O-O {[%clk 0:02:56]}  Bb4 {[%clk 0:02:51]} 11. Nge2 {[%clk 0:02:56]}  O-O {[%clk 0:02:50]} 12. g4 {[%clk 0:02:50]}  b6 {[%clk 0:02:28]} 13. h4 {[%clk 0:02:45]}  Ba6 {[%clk 0:02:27]} 14. g5 {[%clk 0:02:40]}  b5 {[%clk 0:02:19]} 15. h5 {[%clk 0:02:40]}  Bxc3 {[%clk 0:02:17]} 16. Nxc3 {[%clk 0:02:40]}  b4 {[%clk 0:02:17]} 17. Nb1 {[%clk 0:02:33]}  Qxa2 {[%clk 0:02:14]} 18. g6 {[%clk 0:02:28]}  fxg6 {[%clk 0:01:55]} 19. hxg6 {[%clk 0:02:26]}  hxg6 {[%clk 0:01:56]} 20. Bd6 {[%clk 0:02:17]}  Rf6 {[%clk 0:01:56]} 21. Qh2 {[%clk 0:02:01]}  Kf7 {[%clk 0:01:40]} 22. Qh8 {[%clk 0:02:01]}  g5 {[%clk 0:01:22]} 23. Rh7 {[%clk 0:01:54]} 1-0


[Site "https://www.chess.com"]

[Event "Titled Tuesday Blitz July 27 2021"]
[White "Costachi, Mihnea"]
[Black "Sapunov, Evgeny"]
[WhiteFideId "1217518"]
[BlackFideId "4126661"]
[WhiteElo "2556"]
[BlackElo "2741"]
[Result "1-0"]
[Round "10"]
[TimeControl "180+1"]
[Date "2021.07.27"]
[WhiteClock "0:01:43"]
[BlackClock "0:00:45"]

1. d4 {[%clk 0:03:00]}  Nf6 {[%clk 0:02:54]} 2. c4 {[%clk 0:03:00]}  g6 {[%clk 0:02:54]} 3. Nc3 {[%clk 0:03:01]}  Bg7 {[%clk 0:02:54]} 4. e4 {[%clk 0:03:01]}  O-O {[%clk 0:02:54]} 5. Be2 {[%clk 0:03:02]}  d6 {[%clk 0:02:54]} 6. Bg5 {[%clk 0:03:03]}  Na6 {[%clk 0:02:54]} 7. Nf3 {[%clk 0:03:00]}  h6 {[%clk 0:02:49]} 8. Bh4 {[%clk 0:02:56]}  g5 {[%clk 0:02:49]} 9. Bg3 {[%clk 0:02:56]}  Nh5 {[%clk 0:02:49]} 10. Qd2 {[%clk 0:02:54]}  c6 {[%clk 0:02:41]} 11. O-O-O {[%clk 0:02:48]}  e6 {[%clk 0:02:32]} 12. Kb1 {[%clk 0:02:41]}  Nc7 {[%clk 0:02:31]} 13. Ka1 {[%clk 0:02:29]}  f5 {[%clk 0:02:31]} 14. exf5 {[%clk 0:02:27]}  exf5 {[%clk 0:02:29]} 15. Ne1 {[%clk 0:02:18]}  Nxg3 {[%clk 0:02:22]} 16. hxg3 {[%clk 0:02:19]}  a6 {[%clk 0:02:17]} 17. Nc2 {[%clk 0:02:15]}  b5 {[%clk 0:02:16]} 18. c5 {[%clk 0:02:15]}  d5 {[%clk 0:02:11]} 19. Bh5 {[%clk 0:02:10]}  a5 {[%clk 0:02:07]} 20. f4 {[%clk 0:02:09]}  g4 {[%clk 0:01:38]} 21. Rde1 {[%clk 0:02:08]}  Rb8 {[%clk 0:01:17]} 22. Re3 {[%clk 0:02:06]}  Ne6 {[%clk 0:01:07]} 23. Rhe1 {[%clk 0:02:05]}  Nxc5 {[%clk 0:01:07]} 24. dxc5 {[%clk 0:01:43]}  d4 {[%clk 0:01:07]} 25. Re8 {[%clk 0:01:43]}  Rxe8 {[%clk 0:00:48]} 26. Rxe8+ {[%clk 0:01:41]}  Qxe8 {[%clk 0:00:47]} 27. Bxe8 {[%clk 0:01:42]}  dxc3 {[%clk 0:00:47]} 28. Qd8 {[%clk 0:01:43]}  cxb2+ {[%clk 0:00:45]} 29. Kb1 {[%clk 0:01:43]} 1-0


[Site "https://www.chess.com"]

[Event "Titled Tuesday Blitz July 27 2021"]
[White "Deviprasath, Sharvesh"]
[Black "Can, Emre"]
[WhiteFideId "30938228"]
[BlackFideId "6302181"]
[WhiteElo "2102"]
[BlackElo "2503"]
[Result "0-1"]
[Round "10"]
[TimeControl "180+1"]
[Date "2021.07.27"]
[WhiteClock "0:01:09"]
[BlackClock "0:00:22"]

1. Nf3 {[%clk 0:03:00]}  c5 {[%clk 0:02:57]} 2. b3 {[%clk 0:03:00]}  d5 {[%clk 0:02:54]} 3. Bb2 {[%clk 0:03:00]}  f6 {[%clk 0:02:53]} 4. e3 {[%clk 0:03:01]}  Nc6 {[%clk 0:02:43]} 5. d4 {[%clk 0:02:59]}  Bf5 {[%clk 0:02:29]} 6. c4 {[%clk 0:02:56]}  cxd4 {[%clk 0:02:24]} 7. Nxd4 {[%clk 0:02:50]}  Nxd4 {[%clk 0:02:23]} 8. Qxd4 {[%clk 0:02:41]}  dxc4 {[%clk 0:02:18]} 9. Qxc4 {[%clk 0:02:33]}  Rc8 {[%clk 0:02:09]} 10. Qa4+ {[%clk 0:02:29]}  Bd7 {[%clk 0:01:59]} 11. Qxa7 {[%clk 0:02:28]}  e5 {[%clk 0:01:59]} 12. Nd2 {[%clk 0:01:57]}  Rc2 {[%clk 0:01:46]} 13. Ba3 {[%clk 0:01:41]}  Bc6 {[%clk 0:01:39]} 14. Rd1 {[%clk 0:01:31]}  Rxa2 {[%clk 0:01:21]} 15. Nc4 {[%clk 0:01:22]}  Bb4+ {[%clk 0:00:27]} 16. Bxb4 {[%clk 0:01:12]}  Qxd1+ {[%clk 0:00:26]} 17. Kxd1 {[%clk 0:01:12]}  Rxa7 {[%clk 0:00:26]} 18. Be2 {[%clk 0:01:09]}  Ra1+ {[%clk 0:00:22]} 0-1


[Site "https://www.chess.com"]

[Event "Titled Tuesday Blitz July 27 2021"]
[White "Dobrowolski, Piotr"]
[Black "Vasquez Schroeder, Rodrigo"]
[WhiteFideId "1106236"]
[BlackFideId "3400042"]
[WhiteElo "2304"]
[BlackElo "2572"]
[Result "0-1"]
[Round "10"]
[TimeControl "180+1"]
[Date "2021.07.27"]
[WhiteClock "0:00:11"]
[BlackClock "0:00:31"]

1. e4 {[%clk 0:03:00]}  c5 {[%clk 0:02:58]} 2. c3 {[%clk 0:03:00]}  Nf6 {[%clk 0:02:57]} 3. e5 {[%clk 0:03:00]}  Nd5 {[%clk 0:02:58]} 4. d4 {[%clk 0:03:01]}  cxd4 {[%clk 0:02:58]} 5. Nf3 {[%clk 0:03:01]}  Nc6 {[%clk 0:02:56]} 6. cxd4 {[%clk 0:03:01]}  d6 {[%clk 0:02:56]} 7. Bc4 {[%clk 0:03:02]}  dxe5 {[%clk 0:02:56]} 8. Bxd5 {[%clk 0:03:01]}  Qxd5 {[%clk 0:02:55]} 9. Nc3 {[%clk 0:03:02]}  Qd6 {[%clk 0:02:55]} 10. d5 {[%clk 0:03:01]}  Nd4 {[%clk 0:02:55]} 11. Nxd4 {[%clk 0:02:56]}  exd4 {[%clk 0:02:56]} 12. Qa4+ {[%clk 0:02:56]}  Bd7 {[%clk 0:02:52]} 13. Qxd4 {[%clk 0:02:56]}  e5 {[%clk 0:02:52]} 14. Qc4 {[%clk 0:02:42]}  f5 {[%clk 0:02:44]} 15. O-O {[%clk 0:02:38]}  Rc8 {[%clk 0:02:40]} 16. Qb3 {[%clk 0:02:37]}  b6 {[%clk 0:02:30]} 17. Re1 {[%clk 0:02:35]}  Be7 {[%clk 0:02:28]} 18. Nb5 {[%clk 0:02:14]}  Bxb5 {[%clk 0:02:19]} 19. Qxb5+ {[%clk 0:02:13]}  Kf7 {[%clk 0:02:20]} 20. Qd3 {[%clk 0:01:34]}  e4 {[%clk 0:02:13]} 21. Qh3 {[%clk 0:01:30]}  Qxd5 {[%clk 0:02:12]} 22. Bf4 {[%clk 0:01:29]}  Rcd8 {[%clk 0:02:02]} 23. g4 {[%clk 0:00:55]}  fxg4 {[%clk 0:01:50]} 24. Qxg4 {[%clk 0:00:55]}  Bf6 {[%clk 0:01:50]} 25. Rad1 {[%clk 0:00:54]}  Qe6 {[%clk 0:01:40]} 26. Qxe6+ {[%clk 0:00:49]}  Kxe6 {[%clk 0:01:39]} 27. Rxe4+ {[%clk 0:00:49]}  Kf5 {[%clk 0:01:39]} 28. Rxd8 {[%clk 0:00:49]}  Rxd8 {[%clk 0:01:38]} 29. Ra4 {[%clk 0:00:49]}  Bxb2 {[%clk 0:01:33]} 30. Bc7 {[%clk 0:00:49]}  Rd1+ {[%clk 0:01:27]} 31. Kg2 {[%clk 0:00:49]}  Rd7 {[%clk 0:01:17]} 32. Rxa7 {[%clk 0:00:48]}  Bd4 {[%clk 0:01:11]} 33. Bb8 {[%clk 0:00:45]}  Rxa7 {[%clk 0:01:07]} 34. Bxa7 {[%clk 0:00:45]}  Ke4 {[%clk 0:01:07]} 35. a4 {[%clk 0:00:44]}  Kd5 {[%clk 0:01:03]} 36. Kf3 {[%clk 0:00:44]}  Bc5 {[%clk 0:01:02]} 37. Ke2 {[%clk 0:00:38]}  Kc4 {[%clk 0:01:00]} 38. Bb8 {[%clk 0:00:33]}  Kb4 {[%clk 0:00:59]} 39. Be5 {[%clk 0:00:33]}  g6 {[%clk 0:00:59]} 40. f4 {[%clk 0:00:33]}  Kxa4 {[%clk 0:00:59]} 41. Kd3 {[%clk 0:00:32]}  b5 {[%clk 0:00:59]} 42. Ke4 {[%clk 0:00:27]}  Kb3 {[%clk 0:00:47]} 43. f5 {[%clk 0:00:27]}  Kc4 {[%clk 0:00:47]} 44. fxg6 {[%clk 0:00:27]}  hxg6 {[%clk 0:00:48]} 45. h3 {[%clk 0:00:20]}  b4 {[%clk 0:00:46]} 46. Bf6 {[%clk 0:00:18]}  Bd6 {[%clk 0:00:43]} 47. Bg7 {[%clk 0:00:15]}  b3 {[%clk 0:00:42]} 48. Bb2 {[%clk 0:00:14]}  Bb4 {[%clk 0:00:39]} 49. Kf4 {[%clk 0:00:13]}  Bd2+ {[%clk 0:00:39]} 50. Kg4 {[%clk 0:00:13]}  Kd3 {[%clk 0:00:38]} 51. h4 {[%clk 0:00:12]}  Kc2 {[%clk 0:00:35]} 52. Ba3 {[%clk 0:00:12]}  Kb1 {[%clk 0:00:31]} 53. h5 {[%clk 0:00:10]}  gxh5+ {[%clk 0:00:31]} 54. Kxh5 {[%clk 0:00:11]}  Ka2 {[%clk 0:00:31]} 0-1


[Site "https://www.chess.com"]

[Event "Titled Tuesday Blitz July 27 2021"]
[White "Dushyant Sharma"]
[Black "Seletsky, Grigory"]
[WhiteFideId "25065130"]
[BlackFideId "14112191"]
[WhiteElo "2019"]
[BlackElo "2492"]
[Result "1-0"]
[Round "10"]
[TimeControl "180+1"]
[Date "2021.07.27"]
[WhiteClock "0:02:09"]
[BlackClock "0:01:30"]

1. e4 {[%clk 0:03:00]}  e6 {[%clk 0:02:58]} 2. Nf3 {[%clk 0:03:01]}  d5 {[%clk 0:02:58]} 3. exd5 {[%clk 0:03:02]}  exd5 {[%clk 0:02:57]} 4. d4 {[%clk 0:03:03]}  c6 {[%clk 0:02:57]} 5. Bd3 {[%clk 0:02:59]}  Bd6 {[%clk 0:02:58]} 6. c3 {[%clk 0:02:58]}  Ne7 {[%clk 0:02:58]} 7. O-O {[%clk 0:02:58]}  Bg4 {[%clk 0:02:58]} 8. Be3 {[%clk 0:02:58]}  Nd7 {[%clk 0:02:57]} 9. Nbd2 {[%clk 0:02:58]}  Ng6 {[%clk 0:02:52]} 10. Re1 {[%clk 0:02:56]}  O-O {[%clk 0:02:51]} 11. h3 {[%clk 0:02:56]}  Bxf3 {[%clk 0:02:51]} 12. Nxf3 {[%clk 0:02:57]}  h6 {[%clk 0:02:45]} 13. Qd2 {[%clk 0:02:54]}  Qf6 {[%clk 0:02:45]} 14. Re2 {[%clk 0:02:50]}  Nf4 {[%clk 0:02:44]} 15. Bxf4 {[%clk 0:02:50]}  Bxf4 {[%clk 0:02:44]} 16. Qc2 {[%clk 0:02:50]}  Rfe8 {[%clk 0:02:43]} 17. Rae1 {[%clk 0:02:50]}  Kf8 {[%clk 0:02:42]} 18. b4 {[%clk 0:02:42]}  Rxe2 {[%clk 0:02:20]} 19. Qxe2 {[%clk 0:02:41]}  Bd6 {[%clk 0:02:17]} 20. a4 {[%clk 0:02:38]}  a6 {[%clk 0:02:14]} 21. b5 {[%clk 0:02:37]}  axb5 {[%clk 0:02:14]} 22. axb5 {[%clk 0:02:38]}  Kg8 {[%clk 0:02:04]} 23. c4 {[%clk 0:02:34]}  cxb5 {[%clk 0:01:59]} 24. c5 {[%clk 0:02:32]}  Bc7 {[%clk 0:01:58]} 25. Bxb5 {[%clk 0:02:33]}  Nf8 {[%clk 0:01:56]} 26. Qe7 {[%clk 0:02:33]}  Ne6 {[%clk 0:01:54]} 27. Rxe6 {[%clk 0:02:25]}  Qxe6 {[%clk 0:01:51]} 28. Qxc7 {[%clk 0:02:24]}  Ra1+ {[%clk 0:01:49]} 29. Kh2 {[%clk 0:02:25]}  g5 {[%clk 0:01:49]} 30. Bd7 {[%clk 0:02:21]}  Qf6 {[%clk 0:01:48]} 31. Bc8 {[%clk 0:02:15]}  Rb1 {[%clk 0:01:45]} 32. Bxb7 {[%clk 0:02:13]}  h5 {[%clk 0:01:33]} 33. Bxd5 {[%clk 0:02:09]}  g4 {[%clk 0:01:34]} 34. hxg4 {[%clk 0:02:09]}  hxg4 {[%clk 0:01:34]} 35. Qc8+ {[%clk 0:02:09]}  Kh7 {[%clk 0:01:30]} 36. Qxg4 {[%clk 0:02:09]} 1-0


[Site "https://www.chess.com"]